[Event "SS Manhem Chess Week 2022: Goteborg Open"]
[Site "Schackcentrum, Vegagatan 20, Gothenburg, Sweden"]
[Date "2022.08.12"]
[Round "1.16"]
[White "Wickstrom, Lars"]
[Black "Andreasson, Leo"]
[Result "1-0"]
[TimeControl "15 minutes + 5 seconds per move from move one (Round 1 - 4) / 90 minutes + 30 seconds per move from move one (Round 5 - 8)"]
[WhiteFideId "1770837"]
[BlackFideId "1768980"]
[WhiteElo "1753"]
[BlackElo "1132"]

1. e4 {[%clk 00:15:07]} {[%emt 00:00:02]} e6 {[%clk 00:15:05]} {[%emt
00:00:06]} 2. d4 {[%clk 00:15:08]} {[%emt 00:00:04]} d5 {[%clk 00:15:03]}
{[%emt 00:00:07]} 3. Nc3 {[%clk 00:15:06]} {[%emt 00:00:07]} dxe4 {[%clk
00:15:01]} {[%emt 00:00:08]} 4. Nxe4 {[%clk 00:15:09]} {[%emt 00:00:02]} Nd7
{[%clk 00:14:51]} {[%emt 00:00:15]} 5. Nf3 {[%clk 00:14:44]} {[%emt 00:00:29]}
Ngf6 {[%clk 00:14:50]} {[%emt 00:00:06]} 6. Ng3 {[%clk 00:12:54]} {[%emt
00:01:56]} Bd6 {[%clk 00:13:15]} {[%emt 00:01:40]} 7. Bd3 {[%clk 00:10:57]}
{[%emt 00:02:02]} O-O {[%clk 00:12:49]} {[%emt 00:00:31]} 8. O-O {[%clk
00:10:07]} {[%emt 00:00:55]} h6 {[%clk 00:11:33]} {[%emt 00:01:21]} 9. Re1
{[%clk 00:09:28]} {[%emt 00:00:44]} b6 {[%clk 00:10:04]} {[%emt 00:01:34]} 10.
Ne5 {[%clk 00:07:08]} {[%emt 00:02:24]} Bb7 {[%clk 00:09:30]} {[%emt 00:00:40]}
11. f4 {[%clk 00:05:35]} {[%emt 00:01:37]} c5 {[%clk 00:07:07]} {[%emt
00:02:28]} 12. Ne4 {[%clk 00:03:57]} {[%emt 00:01:43]} Be7 {[%clk 00:04:27]}
{[%emt 00:02:45]} 13. c3 {[%clk 00:02:49]} {[%emt 00:01:14]} Rc8 {[%clk
00:03:23]} {[%emt 00:01:09]} 14. Qf3 {[%clk 00:01:23]} {[%emt 00:01:30]} Ba8
{[%clk 00:02:01]} {[%emt 00:01:27]} 15. f5 {[%clk 00:00:53]} {[%emt 00:00:36]}
Qc7 {[%clk 00:01:23]} {[%emt 00:00:43]} 16. fxe6 {[%clk 00:00:31]} {[%emt
00:00:27]} fxe6 {[%clk 00:01:00]} {[%emt 00:00:29]} 17. Qh3 {[%clk 00:00:35]}
{[%emt 00:00:02]} Nxe4 {[%clk 00:00:30]} {[%emt 00:00:34]} 18. Qxe6+ {[%clk
00:00:36]} {[%emt 00:00:04]} Kh8 {[%clk 00:00:30]} {[%emt 00:00:05]} 19. Ng6+
{[%clk 00:00:38]} {[%emt 00:00:03]} Kh7 {[%clk 00:00:23]} {[%emt 00:00:12]} 20.
Nxf8+ {[%clk 00:00:27]} {[%emt 00:00:16]} Kh8 {[%clk 00:00:24]} {[%emt
00:00:04]} 21. Nxd7 {[%clk 00:00:28]} {[%emt 00:00:04]} Ng5 {[%clk 00:00:10]}
{[%emt 00:00:20]} 22. Qxe7 {[%clk 00:00:27]} {[%emt 00:00:05]} Qb7 {[%emt
00:00:10]} 23. Qe8+ {[%emt 00:00:02]} 1-0

[Event "SS Manhem Chess Week 2022: Goteborg Open"]
[Site "Schackcentrum, Vegagatan 20, Gothenburg, Sweden"]
[Date "2022.08.12"]
[Round "1.17"]
[White "Andreasson, Henrik"]
[Black "Jonbrink, Per-Olof"]
[Result "0-1"]
[TimeControl "15 minutes + 5 seconds per move from move one (Round 1 - 4) / 90 minutes + 30 seconds per move from move one (Round 5 - 8)"]
[WhiteFideId "1766082"]
[BlackFideId "1720163"]
[WhiteElo "1126"]
[BlackElo "1728"]

1. d4 {[%clk 00:15:05]} {[%emt 00:00:05]} d5 {[%clk 00:15:08]} {[%emt
00:00:03]} 2. c4 {[%clk 00:15:02]} {[%emt 00:00:07]} e6 {[%clk 00:15:07]}
{[%emt 00:00:06]} 3. Nf3 {[%clk 00:14:55]} {[%emt 00:00:11]} Nf6 {[%clk
00:14:59]} {[%emt 00:00:13]} 4. e3 {[%clk 00:14:34]} {[%emt 00:00:26]} c6
{[%clk 00:14:41]} {[%emt 00:00:23]} 5. Be2 {[%clk 00:14:09]} {[%emt 00:00:31]}
Nbd7 {[%clk 00:13:59]} {[%emt 00:00:47]} 6. O-O {[%clk 00:14:07]} {[%emt
00:00:06]} dxc4 {[%clk 00:13:23]} {[%emt 00:00:41]} 7. Bxc4 {[%clk 00:14:04]}
{[%emt 00:00:07]} b5 {[%clk 00:13:27]} {[%emt 00:00:02]} 8. Be2 {[%clk
00:13:50]} {[%emt 00:00:19]} Bb7 {[%clk 00:12:41]} {[%emt 00:00:50]} 9. a4
{[%clk 00:13:46]} {[%emt 00:00:10]} a6 {[%clk 00:11:38]} {[%emt 00:01:09]} 10.
Nbd2 {[%clk 00:12:50]} {[%emt 00:01:00]} Be7 {[%clk 00:11:22]} {[%emt
00:00:21]} 11. e4 {[%clk 00:12:44]} {[%emt 00:00:11]} O-O {[%clk 00:09:59]}
{[%emt 00:01:28]} 12. b3 {[%clk 00:11:56]} {[%emt 00:00:53]} bxa4 {[%clk
00:08:30]} {[%emt 00:01:34]} 13. Rxa4 {[%clk 00:11:43]} {[%emt 00:00:17]} c5
{[%clk 00:08:15]} {[%emt 00:00:21]} 14. Bd3 {[%clk 00:10:37]} {[%emt 00:01:11]}
cxd4 {[%clk 00:06:53]} {[%emt 00:01:27]} 15. Rxd4 {[%clk 00:10:10]} {[%emt
00:00:32]} Qb6 {[%clk 00:06:49]} {[%emt 00:00:10]} 16. Nc4 {[%clk 00:09:19]}
{[%emt 00:00:55]} Qc7 {[%clk 00:05:58]} {[%emt 00:00:55]} 17. Bc2 {[%clk
00:08:37]} {[%emt 00:00:47]} Nc5 {[%clk 00:05:31]} {[%emt 00:00:33]} 18. Re1
{[%clk 00:07:13]} {[%emt 00:01:29]} Rfd8 {[%clk 00:05:04]} {[%emt 00:00:31]} 19.
Rxd8+ {[%clk 00:03:51]} {[%emt 00:03:27]} Rxd8 {[%clk 00:05:07]} {[%emt
00:00:02]} 20. Ncd2 {[%clk 00:03:38]} {[%emt 00:00:18]} Ncxe4 {[%clk 00:04:38]}
{[%emt 00:00:34]} 21. Bxe4 {[%clk 00:01:49]} {[%emt 00:01:54]} Nxe4 {[%clk
00:04:30]} {[%emt 00:00:13]} 22. Qe2 {[%clk 00:01:46]} {[%emt 00:00:08]} Nc3
{[%clk 00:03:56]} {[%emt 00:00:40]} 23. Qe3 {[%clk 00:01:18]} {[%emt 00:00:33]}
Nd5 {[%clk 00:03:41]} {[%emt 00:00:20]} 24. Qe2 {[%clk 00:01:03]} {[%emt
00:00:20]} h6 {[%clk 00:03:24]} {[%emt 00:00:21]} 25. Bb2 {[%clk 00:01:00]}
{[%emt 00:00:08]} Bf6 {[%clk 00:03:15]} {[%emt 00:00:15]} 26. Rc1 {[%clk
00:00:55]} {[%emt 00:00:10]} Qe7 {[%clk 00:02:57]} {[%emt 00:00:23]} 27. Bxf6
{[%clk 00:00:46]} {[%emt 00:00:14]} Qxf6 {[%clk 00:02:50]} {[%emt 00:00:12]} 28.
Ne4 {[%clk 00:00:42]} {[%emt 00:00:09]} Qe7 {[%clk 00:02:29]} {[%emt 00:00:26]}
29. h3 {[%clk 00:00:46]} {[%emt 00:00:01]} Qb4 {[%clk 00:01:44]} {[%emt
00:00:50]} 30. Rc3 {[%clk 00:00:34]} {[%emt 00:00:17]} Nxc3 {[%clk 00:01:45]}
{[%emt 00:00:05]} 31. Nxc3 {[%clk 00:00:24]} {[%emt 00:00:15]} Qxc3 {[%clk
00:01:44]} {[%emt 00:00:06]} 32. Ne5 {[%clk 00:00:17]} {[%emt 00:00:12]} Qxb3
{[%clk 00:01:18]} {[%emt 00:00:30]} 33. Qh5 {[%clk 00:00:21]} Qd1+ {[%clk
00:01:18]} {[%emt 00:00:05]} 34. Kh2 {[%clk 00:00:24]} {[%emt 00:00:02]} Qxh5
{[%clk 00:01:22]} 0-1

[Event "SS Manhem Chess Week 2022: Goteborg Open"]
[Site "Schackcentrum, Vegagatan 20, Gothenburg, Sweden"]
[Date "2022.08.12"]
[Round "2.1"]
[White "Heimisson, Hilmir Freyr"]
[Black "Degerfeldt, Sven"]
[Result "1-0"]
[TimeControl "15 minutes + 5 seconds per move from move one (Round 1 - 4) / 90 minutes + 30 seconds per move from move one (Round 5 - 8)"]
[WhiteTitle "IM"]
[WhiteFideId "2309998"]
[BlackFideId "1717430"]
[WhiteElo "2323"]
[BlackElo "1842"]

1. c4 {[%clk 00:15:08]} {[%emt 00:00:01]} Nf6 {[%clk 00:15:01]} {[%emt
00:00:09]} 2. Nc3 {[%clk 00:15:12]} {[%emt 00:00:02]} c5 {[%clk 00:14:59]}
{[%emt 00:00:07]} 3. Nf3 {[%clk 00:15:15]} Nc6 {[%clk 00:14:50]} {[%emt
00:00:15]} 4. g3 {[%clk 00:15:13]} {[%emt 00:00:07]} d6 {[%clk 00:14:36]}
{[%emt 00:00:19]} 5. Bg2 {[%clk 00:15:16]} {[%emt 00:00:03]} g6 {[%clk
00:14:15]} {[%emt 00:00:26]} 6. O-O {[%clk 00:15:08]} {[%emt 00:00:13]} Bg7
{[%clk 00:14:18]} {[%emt 00:00:01]} 7. d4 {[%clk 00:15:01]} {[%emt 00:00:13]}
cxd4 {[%clk 00:14:21]} {[%emt 00:00:01]} 8. Nxd4 {[%clk 00:15:04]} {[%emt
00:00:02]} Bd7 {[%clk 00:14:22]} {[%emt 00:00:05]} 9. b3 {[%clk 00:14:48]}
{[%emt 00:00:22]} O-O {[%clk 00:14:19]} {[%emt 00:00:08]} 10. Bb2 {[%clk
00:14:46]} {[%emt 00:00:07]} a6 {[%clk 00:13:17]} {[%emt 00:01:07]} 11. Nc2
{[%clk 00:13:39]} {[%emt 00:01:12]} Rc8 {[%clk 00:12:27]} {[%emt 00:00:56]} 12.
Ne3 {[%clk 00:13:38]} {[%emt 00:00:06]} Ne8 {[%clk 00:11:05]} {[%emt 00:01:26]}
13. Qd2 {[%clk 00:13:33]} {[%emt 00:00:10]} e6 {[%clk 00:10:59]} {[%emt
00:00:11]} 14. Rac1 {[%clk 00:13:16]} {[%emt 00:00:22]} h5 {[%clk 00:07:22]}
{[%emt 00:03:42]} 15. Rfd1 {[%clk 00:13:16]} {[%emt 00:00:06]} Qa5 {[%clk
00:05:32]} {[%emt 00:01:55]} 16. a3 {[%clk 00:12:15]} {[%emt 00:01:06]} h4
{[%clk 00:04:32]} {[%emt 00:01:04]} 17. b4 {[%clk 00:12:06]} {[%emt 00:00:15]}
Qh5 {[%clk 00:04:23]} {[%emt 00:00:13]} 18. Ne4 {[%clk 00:12:07]} {[%emt
00:00:05]} hxg3 {[%clk 00:04:16]} {[%emt 00:00:12]} 19. hxg3 {[%clk 00:12:04]}
{[%emt 00:00:08]} Bxb2 {[%clk 00:04:07]} {[%emt 00:00:14]} 20. Qxb2 {[%clk
00:12:07]} {[%emt 00:00:02]} Ne5 {[%clk 00:03:57]} {[%emt 00:00:15]} 21. Nxd6
{[%clk 00:10:31]} {[%emt 00:01:41]} Nxd6 {[%clk 00:03:36]} {[%emt 00:00:25]} 22.
Rxd6 {[%clk 00:10:35]} {[%emt 00:00:02]} Bc6 {[%clk 00:03:34]} {[%emt
00:00:07]} 23. Bxc6 {[%clk 00:10:19]} {[%emt 00:00:21]} Rxc6 {[%clk 00:03:23]}
{[%emt 00:00:17]} 24. Rd4 {[%clk 00:10:11]} {[%emt 00:00:11]} g5 {[%clk
00:02:48]} {[%emt 00:00:41]} 25. Kg2 {[%clk 00:09:01]} {[%emt 00:01:15]} Qg6
{[%clk 00:02:39]} {[%emt 00:00:13]} 26. Rh1 {[%clk 00:07:34]} {[%emt 00:01:32]}
Rfc8 {[%clk 00:01:54]} {[%emt 00:00:51]} 27. Ng4 {[%clk 00:07:29]} {[%emt
00:00:10]} Qg7 {[%clk 00:00:49]} {[%emt 00:01:09]} 28. Nxe5 {[%clk 00:07:29]}
{[%emt 00:00:06]} 1-0

[Event "SS Manhem Chess Week 2022: Goteborg Open"]
[Site "Schackcentrum, Vegagatan 20, Gothenburg, Sweden"]
[Date "2022.08.12"]
[Round "2.2"]
[White "Westlund, Tim"]
[Black "Jacobsen, Mikkel Manosri"]
[Result "0-1"]
[TimeControl "15 minutes + 5 seconds per move from move one (Round 1 - 4) / 90 minutes + 30 seconds per move from move one (Round 5 - 8)"]
[BlackTitle "FM"]
[WhiteFideId "1754718"]
[BlackFideId "1444514"]
[WhiteElo "1760"]
[BlackElo "2320"]

1. e4 {[%clk 00:15:08]} {[%emt 00:00:01]} c6 {[%clk 00:15:08]} {[%emt
00:00:04]} 2. d4 {[%clk 00:15:09]} d5 {[%clk 00:15:12]} {[%emt 00:00:03]} 3.
exd5 {[%clk 00:15:11]} {[%emt 00:00:03]} cxd5 {[%clk 00:15:15]} {[%emt
00:00:02]} 4. Bd3 {[%clk 00:15:04]} {[%emt 00:00:09]} Nc6 {[%clk 00:15:19]}
{[%emt 00:00:05]} 5. c3 {[%clk 00:14:56]} {[%emt 00:00:13]} Nf6 {[%clk
00:15:22]} {[%emt 00:00:02]} 6. Bf4 {[%clk 00:14:47]} {[%emt 00:00:14]} Bg4
{[%clk 00:15:21]} {[%emt 00:00:06]} 7. Qb3 {[%clk 00:14:33]} {[%emt 00:00:19]}
Qd7 {[%clk 00:15:25]} {[%emt 00:00:03]} 8. Nd2 {[%clk 00:14:14]} {[%emt
00:00:23]} e6 {[%clk 00:15:28]} {[%emt 00:00:02]} 9. Ngf3 {[%clk 00:14:06]}
{[%emt 00:00:13]} Bd6 {[%clk 00:15:31]} {[%emt 00:00:02]} 10. Bg3 {[%clk
00:12:56]} {[%emt 00:01:14]} O-O {[%clk 00:15:14]} {[%emt 00:00:22]} 11. Ne5
{[%clk 00:12:30]} {[%emt 00:00:31]} Qc7 {[%clk 00:14:52]} {[%emt 00:00:27]} 12.
Nxg4 {[%clk 00:11:53]} {[%emt 00:00:42]} Nxg4 {[%clk 00:14:54]} {[%emt
00:00:04]} 13. Bb1 {[%clk 00:10:35]} {[%emt 00:01:23]} g6 {[%clk 00:14:11]}
{[%emt 00:00:48]} 14. Nf3 {[%clk 00:09:30]} {[%emt 00:01:09]} b5 {[%clk
00:11:53]} {[%emt 00:02:23]} 15. Bxd6 {[%clk 00:09:03]} {[%emt 00:00:33]} Qxd6
{[%clk 00:11:56]} {[%emt 00:00:02]} 16. O-O {[%clk 00:09:01]} {[%emt 00:00:06]}
b4 {[%clk 00:11:33]} {[%emt 00:00:28]} 17. h3 {[%clk 00:08:13]} {[%emt
00:00:52]} Nf6 {[%clk 00:11:36]} {[%emt 00:00:02]} 18. cxb4 {[%clk 00:08:01]}
{[%emt 00:00:17]} Nxb4 {[%clk 00:10:33]} {[%emt 00:01:08]} 19. a3 {[%clk
00:07:50]} {[%emt 00:00:17]} Nc6 {[%clk 00:10:33]} {[%emt 00:00:05]} 20. Re1
{[%clk 00:07:08]} {[%emt 00:00:45]} Rfc8 {[%clk 00:09:51]} {[%emt 00:00:48]} 21.
Qd3 {[%clk 00:06:48]} {[%emt 00:00:26]} Ne4 {[%clk 00:08:56]} {[%emt 00:01:00]}
22. Nd2 {[%clk 00:06:07]} {[%emt 00:00:45]} Nxd2 {[%clk 00:08:23]} {[%emt
00:00:39]} 23. Qxd2 {[%clk 00:06:06]} {[%emt 00:00:06]} Qc7 {[%clk 00:08:25]}
{[%emt 00:00:03]} 24. Ba2 {[%clk 00:05:49]} {[%emt 00:00:23]} Qb6 {[%clk
00:08:11]} {[%emt 00:00:18]} 25. Red1 {[%clk 00:05:27]} {[%emt 00:00:26]} Rab8
{[%clk 00:07:16]} {[%emt 00:01:00]} 26. b4 {[%clk 00:05:08]} {[%emt 00:00:24]}
a5 {[%clk 00:07:20]} {[%emt 00:00:02]} 27. bxa5 {[%clk 00:04:15]} {[%emt
00:00:58]} Nxa5 {[%clk 00:07:23]} {[%emt 00:00:02]} 28. Rab1 {[%clk 00:03:37]}
{[%emt 00:00:42]} Qa6 {[%clk 00:07:27]} {[%emt 00:00:02]} 29. Rdc1 {[%clk
00:02:50]} {[%emt 00:00:51]} Rxb1 {[%clk 00:07:06]} {[%emt 00:00:26]} 30. Rxb1
{[%clk 00:02:52]} {[%emt 00:00:04]} Nc4 {[%clk 00:06:40]} {[%emt 00:00:31]} 31.
Bxc4 {[%clk 00:02:37]} {[%emt 00:00:20]} Qxc4 {[%clk 00:06:43]} {[%emt
00:00:02]} 32. Qb4 {[%clk 00:02:23]} {[%emt 00:00:19]} Kg7 {[%clk 00:05:45]}
{[%emt 00:01:04]} 33. a4 {[%clk 00:02:03]} {[%emt 00:00:25]} Qe2 {[%clk
00:05:48]} 34. Rf1 {[%clk 00:01:43]} {[%emt 00:00:25]} Rc2 {[%clk 00:05:24]}
{[%emt 00:00:28]} 35. a5 {[%clk 00:01:42]} {[%emt 00:00:06]} Ra2 {[%clk
00:05:27]} {[%emt 00:00:03]} 36. Qc5 {[%clk 00:01:37]} {[%emt 00:00:09]} h5
{[%clk 00:05:10]} {[%emt 00:00:23]} 37. Qb6 {[%clk 00:01:38]} {[%emt 00:00:03]}
g5 {[%clk 00:04:40]} {[%emt 00:00:36]} 38. Qc7 {[%clk 00:01:33]} {[%emt
00:00:08]} g4 {[%clk 00:04:32]} {[%emt 00:00:14]} 39. Qd8 {[%clk 00:01:29]}
{[%emt 00:00:10]} Qd2 {[%clk 00:04:27]} {[%emt 00:00:10]} 40. hxg4 {[%clk
00:01:23]} {[%emt 00:00:09]} hxg4 {[%clk 00:04:30]} {[%emt 00:00:04]} 41. Qb6
{[%clk 00:01:22]} {[%emt 00:00:06]} g3 {[%clk 00:04:24]} {[%emt 00:00:12]} 42.
Qd8 {[%clk 00:01:18]} {[%emt 00:00:05]} gxf2+ {[%clk 00:04:24]} {[%emt
00:00:07]} 43. Kh2 {[%clk 00:01:19]} {[%emt 00:00:03]} Qh6+ {[%clk 00:03:23]}
{[%emt 00:01:08]} 44. Kg3 {[%clk 00:01:22]} {[%emt 00:00:01]} Qg6+ {[%clk
00:03:27]} {[%emt 00:00:02]} 45. Kh2 {[%clk 00:01:24]} {[%emt 00:00:01]} Qf6
{[%clk 00:02:31]} {[%emt 00:01:02]} 46. Qxf6+ {[%clk 00:01:06]} {[%emt
00:00:24]} Kxf6 {[%clk 00:02:35]} 47. Kg3 {[%clk 00:01:04]} {[%emt 00:00:06]}
Rxa5 {[%clk 00:02:38]} {[%emt 00:00:02]} 48. Rxf2+ {[%clk 00:01:07]} {[%emt
00:00:02]} Kg6 {[%clk 00:02:32]} {[%emt 00:00:12]} 49. Kf4 {[%clk 00:01:05]}
{[%emt 00:00:07]} f6 {[%clk 00:02:31]} {[%emt 00:00:06]} 50. Rd2 {[%clk
00:01:00]} {[%emt 00:00:09]} Ra4 {[%clk 00:02:15]} {[%emt 00:00:23]} 51. Ke3
{[%clk 00:01:01]} {[%emt 00:00:03]} Kg5 {[%clk 00:02:17]} {[%emt 00:00:03]} 52.
Kf3 {[%clk 00:00:58]} {[%emt 00:00:07]} Kf5 {[%clk 00:02:09]} {[%emt 00:00:14]}
53. Rd3 {[%clk 00:00:55]} {[%emt 00:00:07]} Ra2 {[%clk 00:02:07]} {[%emt
00:00:08]} 54. Re3 {[%clk 00:00:48]} {[%emt 00:00:10]} e5 {[%clk 00:01:57]}
{[%emt 00:00:17]} 55. Rd3 {[%clk 00:00:29]} {[%emt 00:00:24]} e4+ {[%clk
00:02:00]} {[%emt 00:00:01]} 0-1

[Event "SS Manhem Chess Week 2022: Goteborg Open"]
[Site "Schackcentrum, Vegagatan 20, Gothenburg, Sweden"]
[Date "2022.08.12"]
[Round "2.3"]
[White "Nygren, Kim"]
[Black "Mohammed, Safian Haj"]
[Result "1-0"]
[TimeControl "15 minutes + 5 seconds per move from move one (Round 1 - 4) / 90 minutes + 30 seconds per move from move one (Round 5 - 8)"]
[WhiteTitle "CM"]
[WhiteFideId "1706136"]
[BlackFideId "1729276"]
[WhiteElo "2229"]
[BlackElo "1794"]

1. e4 {[%clk 00:15:07]} {[%emt 00:00:02]} c5 {[%clk 00:15:05]} {[%emt
00:00:06]} 2. Nf3 {[%clk 00:15:11]} {[%emt 00:00:02]} Nc6 {[%clk 00:15:04]}
{[%emt 00:00:05]} 3. b4 {[%clk 00:15:13]} {[%emt 00:00:05]} Nxb4 {[%clk
00:14:14]} {[%emt 00:00:53]} 4. c3 {[%clk 00:15:16]} {[%emt 00:00:02]} Nc6
{[%clk 00:14:12]} {[%emt 00:00:07]} 5. d4 {[%clk 00:15:19]} {[%emt 00:00:02]}
cxd4 {[%clk 00:14:10]} {[%emt 00:00:08]} 6. cxd4 {[%clk 00:15:22]} {[%emt
00:00:01]} e6 {[%clk 00:13:54]} {[%emt 00:00:20]} 7. d5 {[%clk 00:14:35]}
{[%emt 00:00:52]} Bb4+ {[%clk 00:13:45]} {[%emt 00:00:15]} 8. Nbd2 {[%clk
00:14:22]} {[%emt 00:00:18]} exd5 {[%clk 00:11:33]} {[%emt 00:02:18]} 9. exd5
{[%clk 00:14:20]} {[%emt 00:00:06]} Qe7+ {[%clk 00:11:17]} {[%emt 00:00:21]} 10.
Be2 {[%clk 00:14:16]} {[%emt 00:00:10]} Ne5 {[%clk 00:10:45]} {[%emt 00:00:37]}
11. O-O {[%clk 00:14:06]} {[%emt 00:00:14]} Nf6 {[%clk 00:10:14]} {[%emt
00:00:36]} 12. Rb1 {[%clk 00:13:43]} {[%emt 00:00:29]} Nxf3+ {[%clk 00:08:21]}
{[%emt 00:01:58]} 13. Bxf3 {[%clk 00:13:30]} {[%emt 00:00:18]} O-O {[%clk
00:08:01]} {[%emt 00:00:25]} 14. Nc4 {[%clk 00:12:40]} {[%emt 00:00:54]} Qc5
{[%clk 00:06:19]} {[%emt 00:01:44]} 15. Qb3 {[%clk 00:12:18]} {[%emt 00:00:29]}
Ba5 {[%clk 00:04:45]} {[%emt 00:01:39]} 16. Ba3 {[%clk 00:12:11]} {[%emt
00:00:13]} Qc7 {[%clk 00:04:39]} {[%emt 00:00:11]} 17. Bxf8 {[%clk 00:12:08]}
{[%emt 00:00:08]} Kxf8 {[%clk 00:04:37]} {[%emt 00:00:07]} 18. Qa3+ {[%clk
00:12:10]} {[%emt 00:00:04]} 1-0

[Event "SS Manhem Chess Week 2022: Goteborg Open"]
[Site "Schackcentrum, Vegagatan 20, Gothenburg, Sweden"]
[Date "2022.08.12"]
[Round "2.4"]
[White "Wahlstrom, Lennart"]
[Black "Wickstrom, Lars"]
[Result "1-0"]
[TimeControl "15 minutes + 5 seconds per move from move one (Round 1 - 4) / 90 minutes + 30 seconds per move from move one (Round 5 - 8)"]
[WhiteFideId "1706829"]
[BlackFideId "1770837"]
[WhiteElo "2115"]
[BlackElo "1753"]

1. e4 {[%clk 00:15:07]} c5 {[%clk 00:13:02]} {[%emt 00:02:10]} 2. Nf3 {[%clk
00:15:07]} {[%emt 00:00:05]} Nc6 {[%clk 00:13:05]} {[%emt 00:00:03]} 3. d4
{[%clk 00:15:08]} {[%emt 00:00:03]} cxd4 {[%clk 00:13:09]} {[%emt 00:00:02]} 4.
Nxd4 {[%clk 00:15:11]} Nf6 {[%clk 00:13:12]} {[%emt 00:00:02]} 5. Nc3 {[%clk
00:15:12]} {[%emt 00:00:04]} e5 {[%clk 00:13:14]} {[%emt 00:00:04]} 6. Nf5
{[%clk 00:14:12]} {[%emt 00:01:04]} d5 {[%clk 00:13:14]} {[%emt 00:00:05]} 7.
Nxd5 {[%emt 00:00:15]} Nxd5 {[%clk 00:11:30]} {[%emt 00:01:48]} 8. exd5 {[%emt
00:00:06]} Bxf5 {[%clk 00:11:30]} {[%emt 00:00:01]} 9. dxc6 {[%clk 00:14:08]}
{[%emt 00:00:03]} bxc6 {[%clk 00:11:26]} {[%emt 00:00:09]} 10. Be3 {[%clk
00:12:38]} {[%emt 00:01:35]} Be7 {[%clk 00:07:33]} {[%emt 00:03:59]} 11. Qxd8+
{[%clk 00:10:37]} Bxd8 {[%clk 00:07:20]} {[%emt 00:02:24]} 12. Bd3 {[%clk
00:08:43]} {[%emt 00:01:58]} Bxd3 {[%clk 00:05:52]} {[%emt 00:01:34]} 13. cxd3
{[%clk 00:08:46]} {[%emt 00:00:02]} Bb6 {[%clk 00:05:54]} {[%emt 00:00:03]} 14.
Rc1 {[%clk 00:08:46]} {[%emt 00:00:04]} O-O {[%clk 00:03:10]} {[%emt 00:02:50]}
15. Rxc6 {[%clk 00:07:48]} {[%emt 00:01:02]} Rac8 {[%clk 00:02:02]} {[%emt
00:01:13]} 16. Rxc8 {[%clk 00:07:48]} {[%emt 00:00:05]} Rxc8 {[%clk 00:02:06]}
{[%emt 00:00:02]} 17. Kd1 {[%clk 00:07:09]} {[%emt 00:00:44]} Kf8 {[%clk
00:00:47]} {[%emt 00:01:24]} 18. Bxb6 {[%clk 00:06:26]} {[%emt 00:00:48]} axb6
{[%clk 00:00:51]} {[%emt 00:00:02]} 19. Kd2 {[%clk 00:06:27]} {[%emt 00:00:03]}
Ke7 {[%clk 00:00:31]} {[%emt 00:00:24]} 20. Rc1 {[%clk 00:05:38]} {[%emt
00:00:54]} Rd8 {[%clk 00:00:16]} {[%emt 00:00:22]} 21. Rc7+ {[%clk 00:05:16]}
{[%emt 00:00:25]} Ke8 {[%clk 00:00:08]} {[%emt 00:00:14]} 22. Kc3 {[%clk
00:04:52]} {[%emt 00:00:29]} Rd6 {[%clk 00:00:09]} {[%emt 00:00:04]} 23. Kd2
{[%clk 00:03:14]} {[%emt 00:01:42]} Rf6 {[%clk 00:00:12]} {[%emt 00:00:02]} 24.
Ke3 {[%clk 00:03:16]} {[%emt 00:00:03]} Kd8 {[%clk 00:00:14]} {[%emt 00:00:03]}
25. Rb7 {[%clk 00:03:00]} {[%emt 00:00:20]} Kc8 {[%clk 00:00:13]} {[%emt
00:00:07]} 26. Re7 {[%clk 00:03:02]} {[%emt 00:00:03]} Kd8 {[%clk 00:00:17]} 27.
Rxe5 {[%clk 00:03:04]} {[%emt 00:00:03]} 1-0